[Event "Early-Titled-Tuesday-Blitz-March-05-2024"]
[Site "Chess.com"]
[Date "2024.03.05"]
[Round "10"]
[White "FuenfgegenWilly"]
[Black "Pingah9"]
[Result "1/2-1/2"]
[WhiteElo "2459"]
[BlackElo "2589"]
[TimeControl "180+1"]
[EndTime "10:00:16 PST"]
[Termination "Game drawn by stalemate"]

1. e4 {[%clk 0:03:00.9]} 1... g6 {[%clk 0:02:59.9]} 2. Nc3 {[%clk 0:03:01]} 2...
Bg7 {[%clk 0:03:00.8]} 3. f4 {[%clk 0:03:01.7]} 3... c5 {[%clk 0:02:59.3]} 4.
Nf3 {[%clk 0:03:02.1]} 4... Nc6 {[%clk 0:02:59.6]} 5. Bb5 {[%clk 0:03:02.7]}
5... Nd4 {[%clk 0:02:58.7]} 6. O-O {[%clk 0:03:03.4]} 6... Nxb5 {[%clk
0:02:55.6]} 7. Nxb5 {[%clk 0:03:04.3]} 7... a6 {[%clk 0:02:49.9]} 8. Nc3 {[%clk
0:03:04.5]} 8... d6 {[%clk 0:02:49]} 9. d3 {[%clk 0:03:04.6]} 9... e6 {[%clk
0:02:49.2]} 10. Qe1 {[%clk 0:03:04.7]} 10... Ne7 {[%clk 0:02:48.9]} 11. Qh4
{[%clk 0:02:54.8]} 11... Nc6 {[%clk 0:02:44.9]} 12. Qh3 {[%clk 0:02:52.6]} 12...
Nd4 {[%clk 0:02:38.6]} 13. Nxd4 {[%clk 0:02:49]} 13... cxd4 {[%clk 0:02:39.4]}
14. Ne2 {[%clk 0:02:49.4]} 14... Qc7 {[%clk 0:02:35.6]} 15. c3 {[%clk
0:02:34.7]} 15... dxc3 {[%clk 0:02:23.6]} 16. bxc3 {[%clk 0:02:32.2]} 16... b5
{[%clk 0:02:08.5]} 17. d4 {[%clk 0:02:27.8]} 17... O-O {[%clk 0:02:05.6]} 18.
Qd3 {[%clk 0:02:19.6]} 18... Bb7 {[%clk 0:02:00.7]} 19. Bd2 {[%clk 0:02:17.6]}
19... Qc6 {[%clk 0:01:56.6]} 20. Rf2 {[%clk 0:02:10.5]} 20... Qxe4 {[%clk
0:01:55.1]} 21. Qxe4 {[%clk 0:02:08.1]} 21... Bxe4 {[%clk 0:01:56]} 22. Ng3
{[%clk 0:02:04.5]} 22... Bd5 {[%clk 0:01:56.1]} 23. a4 {[%clk 0:02:04.4]} 23...
h5 {[%clk 0:01:52.8]} 24. Nf1 {[%clk 0:02:02.8]} 24... bxa4 {[%clk 0:01:49.1]}
25. Rxa4 {[%clk 0:02:02.4]} 25... Rfc8 {[%clk 0:01:42.8]} 26. Ne3 {[%clk
0:02:02.4]} 26... Bc6 {[%clk 0:01:40.6]} 27. Ra5 {[%clk 0:02:00.8]} 27... Bb5
{[%clk 0:01:39.3]} 28. Be1 {[%clk 0:01:56]} 28... d5 {[%clk 0:01:36.1]} 29. h3
{[%clk 0:01:54.1]} 29... Bf8 {[%clk 0:01:35.5]} 30. g4 {[%clk 0:01:53.1]} 30...
hxg4 {[%clk 0:01:26.9]} 31. hxg4 {[%clk 0:01:54]} 31... Bd6 {[%clk 0:01:25.9]}
32. Kg2 {[%clk 0:01:50.9]} 32... Kg7 {[%clk 0:01:24.1]} 33. f5 {[%clk
0:01:51.1]} 33... exf5 {[%clk 0:01:18]} 34. gxf5 {[%clk 0:01:51.1]} 34... Rh8
{[%clk 0:01:08.3]} 35. Ng4 {[%clk 0:01:32.8]} 35... gxf5 {[%clk 0:01:05.8]} 36.
Rxf5 {[%clk 0:01:32.4]} 36... Bc7 {[%clk 0:01:01]} 37. Ra2 {[%clk 0:01:31.2]}
37... Bd3 {[%clk 0:00:57.5]} 38. Rg5+ {[%clk 0:01:23.7]} 38... Kf8 {[%clk
0:00:57.6]} 39. Nf6 {[%clk 0:01:17.7]} 39... Rh2+ {[%clk 0:00:53.8]} 40. Kf3
{[%clk 0:01:14.5]} 40... Rxa2 {[%clk 0:00:52.9]} 41. Rg8+ {[%clk 0:01:12.4]}
41... Ke7 {[%clk 0:00:53.3]} 42. Nxd5+ {[%clk 0:01:09]} 42... Kd6 {[%clk
0:00:53.5]} 43. Rxa8 {[%clk 0:01:08.7]} 43... Kxd5 {[%clk 0:00:52.4]} 44. Ra7
{[%clk 0:01:05.9]} 44... Be4+ {[%clk 0:00:46.1]} 45. Ke3 {[%clk 0:01:05.1]}
45... Ra1 {[%clk 0:00:37]} 46. c4+ {[%clk 0:00:44]} 46... Ke6 {[%clk 0:00:31.9]}
47. Bc3 {[%clk 0:00:41.9]} 47... Ra3 {[%clk 0:00:28]} 48. Rxc7 {[%clk
0:00:40.8]} 48... Rxc3+ {[%clk 0:00:18.3]} 49. Kxe4 {[%clk 0:00:41]} 49... f5+
{[%clk 0:00:17.7]} 50. Kf4 {[%clk 0:00:41]} 50... a5 {[%clk 0:00:18.2]} 51. d5+
{[%clk 0:00:40.3]} 51... Kf6 {[%clk 0:00:17.7]} 52. Rc6+ {[%clk 0:00:40.5]}
52... Ke7 {[%clk 0:00:17.7]} 53. Kxf5 {[%clk 0:00:40.7]} 53... a4 {[%clk
0:00:17.8]} 54. Ke5 {[%clk 0:00:38.3]} 54... a3 {[%clk 0:00:17.9]} 55. Kd4
{[%clk 0:00:37.5]} 55... a2 {[%clk 0:00:17.6]} 56. Ra6 {[%clk 0:00:36.8]} 56...
Rc2 {[%clk 0:00:18]} 57. Kc5 {[%clk 0:00:34.8]} 57... Kd7 {[%clk 0:00:17.9]} 58.
Ra7+ {[%clk 0:00:34.8]} 58... Kc8 {[%clk 0:00:18.2]} 59. Ra4 {[%clk 0:00:33.3]}
59... Kb7 {[%clk 0:00:18]} 60. d6 {[%clk 0:00:29.7]} 60... Kc8 {[%clk
0:00:18.2]} 61. Ra8+ {[%clk 0:00:19.6]} 61... Kb7 {[%clk 0:00:18]} 62. d7 {[%clk
0:00:14.6]} 62... Rd2 {[%clk 0:00:12.3]} 63. Rxa2 {[%clk 0:00:10]} 63... Rxd7
{[%clk 0:00:12.2]} 64. Kb5 {[%clk 0:00:09.1]} 64... Rd6 {[%clk 0:00:11.8]} 65.
c5 {[%clk 0:00:08.4]} 65... Rh6 {[%clk 0:00:12]} 66. Rg2 {[%clk 0:00:08.8]}
66... Kc7 {[%clk 0:00:11.2]} 67. Rg7+ {[%clk 0:00:08.7]} 67... Kc8 {[%clk
0:00:11.4]} 68. Ra7 {[%clk 0:00:08.6]} 68... Rg6 {[%clk 0:00:11.4]} 69. Ra4
{[%clk 0:00:08.3]} 69... Rh6 {[%clk 0:00:11.1]} 70. Re4 {[%clk 0:00:08.5]} 70...
Rg6 {[%clk 0:00:11.3]} 71. Kc4 {[%clk 0:00:09]} 71... Rh6 {[%clk 0:00:11.7]} 72.
Kd5 {[%clk 0:00:09.5]} 72... Rg6 {[%clk 0:00:12.2]} 73. Re8+ {[%clk 0:00:08.8]}
73... Kc7 {[%clk 0:00:11.8]} 74. Re7+ {[%clk 0:00:08.8]} 74... Kc8 {[%clk
0:00:11.8]} 75. Kc4 {[%clk 0:00:07.6]} 75... Rh6 {[%clk 0:00:11]} 76. Rg7 {[%clk
0:00:06.7]} 76... Rf6 {[%clk 0:00:10.8]} 77. Rh7 {[%clk 0:00:06.8]} 77... Rg6
{[%clk 0:00:11]} 78. Kb5 {[%clk 0:00:07.2]} 78... Rf6 {[%clk 0:00:11]} 79. Rh5
{[%clk 0:00:07.4]} 79... Rg6 {[%clk 0:00:10.8]} 80. c6 {[%clk 0:00:07.7]} 80...
Rg1 {[%clk 0:00:09.4]} 81. Kb6 {[%clk 0:00:07.3]} 81... Rb1+ {[%clk 0:00:08.7]}
82. Rb5 {[%clk 0:00:07.9]} 82... Rxb5+ {[%clk 0:00:07.6]} 83. Kxb5 {[%clk
0:00:08.3]} 83... Kc7 {[%clk 0:00:07.9]} 84. Kc5 {[%clk 0:00:08.6]} 84... Kc8
{[%clk 0:00:07]} 85. Kd6 {[%clk 0:00:08.7]} 85... Kd8 {[%clk 0:00:07.3]} 86. Kd5
{[%clk 0:00:08.5]} 86... Kc7 {[%clk 0:00:07.4]} 87. Kc5 {[%clk 0:00:09.1]} 87...
Kc8 {[%clk 0:00:08.2]} 88. Kc4 {[%clk 0:00:08.6]} 88... Kc7 {[%clk 0:00:08]} 89.
Kb5 {[%clk 0:00:09]} 89... Kc8 {[%clk 0:00:07.4]} 90. Ka6 {[%clk 0:00:09.5]}
90... Kc7 {[%clk 0:00:07.5]} 91. Kb5 {[%clk 0:00:09.8]} 91... Kc8 {[%clk
0:00:07.8]} 92. Kb6 {[%clk 0:00:10.1]} 92... Kb8 {[%clk 0:00:07.8]} 93. Kc5
{[%clk 0:00:10.4]} 93... Kc7 {[%clk 0:00:08.2]} 94. Kd5 {[%clk 0:00:10.8]} 94...
Kc8 {[%clk 0:00:07.8]} 95. Ke6 {[%clk 0:00:10.8]} 95... Kc7 {[%clk 0:00:07.9]}
96. Kd5 {[%clk 0:00:11.2]} 96... Kc8 {[%clk 0:00:08.1]} 97. Kd6 {[%clk
0:00:11.7]} 97... Kd8 {[%clk 0:00:08.5]} 98. c7+ {[%clk 0:00:12.3]} 98... Kc8
{[%clk 0:00:08.5]} 99. Kc6 {[%clk 0:00:12.9]} 1/2-1/2

[Event "Early-Titled-Tuesday-Blitz-March-05-2024"]
[Site "Chess.com"]
[Date "2024.03.05"]
[Round "10"]
[White "AldokhinIvan"]
[Black "ChessBrainiacOnTwitch"]
[Result "1-0"]
[WhiteElo "2674"]
[BlackElo "2804"]
[TimeControl "180+1"]
[EndTime "10:00:18 PST"]
[Termination "AldokhinIvan won by checkmate"]

1. e4 {[%clk 0:03:00.9]} 1... c5 {[%clk 0:02:12.4]} 2. Nf3 {[%clk 0:03:00.1]}
2... e6 {[%clk 0:02:05.5]} 3. d4 {[%clk 0:03:00.2]} 3... cxd4 {[%clk 0:02:06.4]}
4. Nxd4 {[%clk 0:03:00.8]} 4... Nc6 {[%clk 0:02:07.2]} 5. Nc3 {[%clk 0:03:00.2]}
5... Nf6 {[%clk 0:02:06.8]} 6. a3 {[%clk 0:02:56.1]} 6... Be7 {[%clk 0:02:05.1]}
7. Nxc6 {[%clk 0:02:45.1]} 7... bxc6 {[%clk 0:02:06]} 8. e5 {[%clk 0:02:43.4]}
8... Nd5 {[%clk 0:02:06.5]} 9. Ne4 {[%clk 0:02:43.5]} 9... Qc7 {[%clk 0:02:04]}
10. f4 {[%clk 0:02:37.5]} 10... O-O {[%clk 0:01:57.6]} 11. c4 {[%clk 0:02:34.1]}
11... Nb6 {[%clk 0:01:36.8]} 12. Bd3 {[%clk 0:02:16.7]} 12... Ba6 {[%clk
0:01:33.1]} 13. c5 {[%clk 0:01:40.7]} 13... Nc4 {[%clk 0:01:14.2]} 14. Qe2
{[%clk 0:01:32.7]} 14... Nxe5 {[%clk 0:00:59.5]} 15. Bxa6 {[%clk 0:01:27.8]}
15... Ng6 {[%clk 0:00:59.5]} 16. O-O {[%clk 0:01:16.3]} 16... f5 {[%clk
0:00:59.9]} 17. Nd6 {[%clk 0:01:10.9]} 17... Bxd6 {[%clk 0:01:00.4]} 18. cxd6
{[%clk 0:01:10.9]} 18... Qxd6 {[%clk 0:01:01.3]} 19. Be3 {[%clk 0:01:07.3]}
19... Qc7 {[%clk 0:01:00.9]} 20. Rad1 {[%clk 0:01:05.9]} 20... d6 {[%clk
0:01:00.9]} 21. Bc4 {[%clk 0:01:02.3]} 21... Rfe8 {[%clk 0:00:58.6]} 22. Qd3
{[%clk 0:00:52.8]} 22... d5 {[%clk 0:00:56.1]} 23. Ba2 {[%clk 0:00:52.2]} 23...
c5 {[%clk 0:00:54.9]} 24. Rc1 {[%clk 0:00:41.6]} 24... c4 {[%clk 0:00:51.4]} 25.
Qd4 {[%clk 0:00:41.6]} 25... Qe7 {[%clk 0:00:46.1]} 26. Bd2 {[%clk 0:00:34.7]}
26... Rab8 {[%clk 0:00:40.4]} 27. Bc3 {[%clk 0:00:29.3]} 27... Qf7 {[%clk
0:00:40.7]} 28. Rce1 {[%clk 0:00:26.4]} 28... Nf8 {[%clk 0:00:38.8]} 29. Bb1
{[%clk 0:00:23.9]} 29... Nd7 {[%clk 0:00:37.6]} 30. Rf3 {[%clk 0:00:22.6]} 30...
Nf6 {[%clk 0:00:37.8]} 31. Rg3 {[%clk 0:00:20.9]} 31... Nh5 {[%clk 0:00:37.5]}
32. Rg5 {[%clk 0:00:20.2]} 32... Nf6 {[%clk 0:00:36.5]} 33. Qxf6 {[%clk
0:00:18.1]} 33... Qxf6 {[%clk 0:00:37]} 34. Bxf6 {[%clk 0:00:18.6]} 34... g6
{[%clk 0:00:37.9]} 35. Bd4 {[%clk 0:00:16.7]} 35... a5 {[%clk 0:00:38.1]} 36.
Rg3 {[%clk 0:00:16.5]} 36... Kf7 {[%clk 0:00:38.4]} 37. Rge3 {[%clk 0:00:15.1]}
37... a4 {[%clk 0:00:38.8]} 38. Bc2 {[%clk 0:00:15.5]} 38... Ra8 {[%clk
0:00:37.6]} 39. Bd1 {[%clk 0:00:15.7]} 39... Ra6 {[%clk 0:00:37.6]} 40. Bf3
{[%clk 0:00:15.9]} 40... Rd8 {[%clk 0:00:36.4]} 41. h4 {[%clk 0:00:16.1]} 41...
h5 {[%clk 0:00:36.5]} 42. Bd1 {[%clk 0:00:15.5]} 42... Rd7 {[%clk 0:00:36.8]}
43. Kf2 {[%clk 0:00:15.5]} 43... Rb7 {[%clk 0:00:37.3]} 44. Ke2 {[%clk
0:00:12.7]} 44... Rd7 {[%clk 0:00:37.9]} 45. Kd2 {[%clk 0:00:12.2]} 45... Rb7
{[%clk 0:00:38.7]} 46. Re5 {[%clk 0:00:11.5]} 46... Rd7 {[%clk 0:00:39.1]} 47.
Ke3 {[%clk 0:00:10]} 47... Rb7 {[%clk 0:00:39.6]} 48. Bc3 {[%clk 0:00:10]} 48...
Rd7 {[%clk 0:00:40]} 49. Kd4 {[%clk 0:00:10.6]} 49... Rc7 {[%clk 0:00:39.3]} 50.
Be2 {[%clk 0:00:10.6]} 50... Rb7 {[%clk 0:00:39]} 51. Bf3 {[%clk 0:00:10.9]}
51... Rd7 {[%clk 0:00:38.8]} 52. g3 {[%clk 0:00:11]} 52... Rb6 {[%clk
0:00:36.7]} 53. Bb4 {[%clk 0:00:10.9]} 53... Rb5 {[%clk 0:00:35]} 54. Bc3 {[%clk
0:00:09.5]} 54... Rb6 {[%clk 0:00:35.4]} 55. Rd1 {[%clk 0:00:06.5]} 55... Rc6
{[%clk 0:00:35.2]} 56. Ke3 {[%clk 0:00:06]} 56... Rb6 {[%clk 0:00:32.6]} 57.
Bxd5 {[%clk 0:00:02.1]} 57... exd5 {[%clk 0:00:33.5]} 58. Rexd5 {[%clk
0:00:02.1]} 58... Re7+ {[%clk 0:00:33.3]} 59. Kf3 {[%clk 0:00:02]} 59... Rbe6
{[%clk 0:00:34.2]} 60. Be5 {[%clk 0:00:02.3]} 60... Rb6 {[%clk 0:00:29.9]} 61.
Rd6 {[%clk 0:00:02.7]} 61... Rb3+ {[%clk 0:00:30.8]} 62. Kf2 {[%clk 0:00:02.5]}
62... Reb7 {[%clk 0:00:31.7]} 63. R1d2 {[%clk 0:00:02.3]} 63... Ke7 {[%clk
0:00:28.6]} 64. Bc3 {[%clk 0:00:02.9]} 64... Kf7 {[%clk 0:00:21.8]} 65. R6d5
{[%clk 0:00:03.1]} 65... R3b6 {[%clk 0:00:20.7]} 66. Rd6 {[%clk 0:00:04]} 66...
Rb5 {[%clk 0:00:18.7]} 67. Rf6+ {[%clk 0:00:04.1]} 67... Ke7 {[%clk 0:00:18]}
68. Rdd6 {[%clk 0:00:05]} 68... Ke8 {[%clk 0:00:15.3]} 69. Rde6+ {[%clk
0:00:05.3]} 69... Kd7 {[%clk 0:00:15.8]} 70. Rxg6 {[%clk 0:00:05.7]} 70... Rd5
{[%clk 0:00:15.5]} 71. Re5 {[%clk 0:00:05.8]} 71... Rd1 {[%clk 0:00:12.9]} 72.
Rg7+ {[%clk 0:00:05.8]} 72... Kc6 {[%clk 0:00:13.1]} 73. Re6+ {[%clk 0:00:05.8]}
73... Kd5 {[%clk 0:00:13.7]} 74. Re5+ {[%clk 0:00:05.1]} 74... Kc6 {[%clk
0:00:13.6]} 75. Rxb7 {[%clk 0:00:05.2]} 75... Kxb7 {[%clk 0:00:14.5]} 76. Rxf5
{[%clk 0:00:05.4]} 76... Kc6 {[%clk 0:00:14.6]} 77. Rxh5 {[%clk 0:00:04.7]}
77... Rh1 {[%clk 0:00:14.7]} 78. Kf3 {[%clk 0:00:04.9]} 78... Kd6 {[%clk
0:00:14.5]} 79. Re5 {[%clk 0:00:05.8]} 79... Rf1+ {[%clk 0:00:14.6]} 80. Kg4
{[%clk 0:00:06.2]} 80... Rb1 {[%clk 0:00:15.5]} 81. h5 {[%clk 0:00:06.4]} 81...
Rh1 {[%clk 0:00:16.3]} 82. Kg5 {[%clk 0:00:06.6]} 82... Rg1 {[%clk 0:00:16.4]}
83. g4 {[%clk 0:00:07.5]} 83... Rh1 {[%clk 0:00:17.3]} 84. h6 {[%clk 0:00:08.1]}
84... Rh2 {[%clk 0:00:18]} 85. Kg6 {[%clk 0:00:08.4]} 85... Kd7 {[%clk 0:00:18]}
86. g5 {[%clk 0:00:08.7]} 86... Rh3 {[%clk 0:00:12.5]} 87. h7 {[%clk 0:00:08.8]}
87... Kd6 {[%clk 0:00:12.9]} 88. Rf5 {[%clk 0:00:09.1]} 88... Ke6 {[%clk
0:00:12.8]} 89. h8=Q {[%clk 0:00:09.3]} 89... Rxh8 {[%clk 0:00:12.9]} 90. Bxh8
{[%clk 0:00:10]} 90... Kd6 {[%clk 0:00:13.8]} 91. Bc3 {[%clk 0:00:10.1]} 91...
Kd7 {[%clk 0:00:14.7]} 92. Re5 {[%clk 0:00:10.5]} 92... Kd6 {[%clk 0:00:15.1]}
93. Kf6 {[%clk 0:00:10.7]} 93... Kc6 {[%clk 0:00:16]} 94. g6 {[%clk 0:00:10.8]}
94... Kd6 {[%clk 0:00:16.9]} 95. g7 {[%clk 0:00:10.8]} 95... Kd7 {[%clk
0:00:17.8]} 96. g8=Q {[%clk 0:00:10.6]} 96... Kc6 {[%clk 0:00:18.7]} 97. Qd5+
{[%clk 0:00:10.1]} 97... Kc7 {[%clk 0:00:18.7]} 98. Re7+ {[%clk 0:00:10.2]}
98... Kc8 {[%clk 0:00:19.6]} 99. Qb7+ {[%clk 0:00:10]} 99... Kd8 {[%clk
0:00:20.5]} 100. Qc7# {[%clk 0:00:10.6]} 1-0

[Event "Early-Titled-Tuesday-Blitz-March-05-2024"]
[Site "Chess.com"]
[Date "2024.03.05"]
[Round "10"]
[White "Preobrazhenska_D2011"]
[Black "ZCorrales"]
[Result "1-0"]
[WhiteElo "2436"]
[BlackElo "2234"]
[TimeControl "180+1"]
[EndTime "10:00:23 PST"]
[Termination "Preobrazhenska_D2011 won on time"]

1. e4 {[%clk 0:02:56.2]} 1... c5 {[%clk 0:02:59.3]} 2. Nf3 {[%clk 0:02:56.7]}
2... d6 {[%clk 0:02:58.8]} 3. d4 {[%clk 0:02:57]} 3... cxd4 {[%clk 0:02:59.1]}
4. Nxd4 {[%clk 0:02:57.9]} 4... Nf6 {[%clk 0:02:59.4]} 5. Nc3 {[%clk 0:02:57.5]}
5... Nc6 {[%clk 0:02:59.7]} 6. f3 {[%clk 0:02:38.4]} 6... e6 {[%clk 0:02:57.6]}
7. Be3 {[%clk 0:02:38.3]} 7... Be7 {[%clk 0:02:57.8]} 8. Qd2 {[%clk 0:02:37.2]}
8... O-O {[%clk 0:02:57.7]} 9. O-O-O {[%clk 0:02:37.6]} 9... a6 {[%clk
0:02:58.1]} 10. g4 {[%clk 0:02:32.8]} 10... Nxd4 {[%clk 0:02:55.8]} 11. Qxd4
{[%clk 0:02:32.1]} 11... b5 {[%clk 0:02:55.4]} 12. h4 {[%clk 0:02:22.8]} 12...
Bb7 {[%clk 0:02:54.1]} 13. Kb1 {[%clk 0:02:05.9]} 13... Nd7 {[%clk 0:02:50.4]}
14. g5 {[%clk 0:01:51]} 14... Ne5 {[%clk 0:02:47.7]} 15. Be2 {[%clk 0:01:49.5]}
15... Rc8 {[%clk 0:02:42]} 16. Rdg1 {[%clk 0:01:24.1]} 16... Nc4 {[%clk
0:02:34.4]} 17. Bxc4 {[%clk 0:01:19.6]} 17... Rxc4 {[%clk 0:02:31.7]} 18. Qd3
{[%clk 0:01:20]} 18... Qc7 {[%clk 0:02:29.4]} 19. h5 {[%clk 0:01:14.2]} 19...
Rc8 {[%clk 0:02:21.5]} 20. g6 {[%clk 0:00:48]} 20... fxg6 {[%clk 0:02:14.4]} 21.
hxg6 {[%clk 0:00:47.9]} 21... h6 {[%clk 0:02:14.6]} 22. Ne2 {[%clk 0:00:25.3]}
22... Rxc2 {[%clk 0:02:12]} 23. Nd4 {[%clk 0:00:24.5]} 23... Qc4 {[%clk
0:02:03.7]} 24. Qxc4 {[%clk 0:00:21.5]} 24... R2xc4 {[%clk 0:02:03.3]} 25. Nxe6
{[%clk 0:00:20.4]} 25... Bxe4+ {[%clk 0:01:52.4]} 26. fxe4 {[%clk 0:00:18.1]}
26... Rxe4 {[%clk 0:01:52.6]} 27. Nxg7 {[%clk 0:00:15.8]} 27... Kxg7 {[%clk
0:01:25.8]} 28. Bxh6+ {[%clk 0:00:15.5]} 28... Kg8 {[%clk 0:01:26.1]} 29. g7
{[%clk 0:00:11.2]} 29... Bf6 {[%clk 0:01:19.2]} 30. Rg6 {[%clk 0:00:09.6]} 30...
Be5 {[%clk 0:01:14.7]} 31. Bd2 {[%clk 0:00:07]} 31... Bxg7 {[%clk 0:01:10.2]}
32. Rhg1 {[%clk 0:00:05.8]} 32... Rc7 {[%clk 0:01:08.6]} 33. Bc3 {[%clk
0:00:06.1]} 33... Ree7 {[%clk 0:01:06]} 34. Rxd6 {[%clk 0:00:05.3]} 34... Kh7
{[%clk 0:00:53.8]} 35. Rh1+ {[%clk 0:00:05.4]} 35... Kg8 {[%clk 0:00:53]} 36.
Rd8+ {[%clk 0:00:05.9]} 36... Kf7 {[%clk 0:00:52.9]} 37. Rf1+ {[%clk 0:00:04.7]}
37... Kg6 {[%clk 0:00:46.6]} 38. Rg1+ {[%clk 0:00:04.9]} 38... Kf5 {[%clk
0:00:46.2]} 39. Bxg7 {[%clk 0:00:03.4]} 39... Rxg7 {[%clk 0:00:45.7]} 40. Rf1+
{[%clk 0:00:04.1]} 40... Kg6 {[%clk 0:00:41.8]} 41. Rd6+ {[%clk 0:00:04.2]}
41... Kh7 {[%clk 0:00:40.5]} 42. Rxa6 {[%clk 0:00:04.6]} 42... Rg2 {[%clk
0:00:38.5]} 43. Rb6 {[%clk 0:00:04.7]} 43... Rg5 {[%clk 0:00:35.1]} 44. Re1
{[%clk 0:00:04.2]} 44... Kg7 {[%clk 0:00:34.3]} 45. a3 {[%clk 0:00:04.6]} 45...
Rgc5 {[%clk 0:00:30.4]} 46. Ka2 {[%clk 0:00:05]} 46... Kf7 {[%clk 0:00:29.7]}
47. Re3 {[%clk 0:00:05]} 47... Rd5 {[%clk 0:00:28.2]} 48. Rb3 {[%clk 0:00:05.4]}
48... Rcc5 {[%clk 0:00:28.1]} 49. Rb7+ {[%clk 0:00:05.7]} 49... Ke6 {[%clk
0:00:28.1]} 50. Re3+ {[%clk 0:00:05]} 50... Kd6 {[%clk 0:00:28.3]} 51. Ree7
{[%clk 0:00:05.3]} 51... Kc6 {[%clk 0:00:26.5]} 52. Rec7+ {[%clk 0:00:05.1]}
52... Kd6 {[%clk 0:00:26.6]} 53. Rh7 {[%clk 0:00:05.4]} 53... Kc6 {[%clk
0:00:26.1]} 54. Rb8 {[%clk 0:00:05.8]} 54... Rc4 {[%clk 0:00:24.9]} 55. Rh6+
{[%clk 0:00:05.5]} 55... Kc5 {[%clk 0:00:24.9]} 56. Rc8+ {[%clk 0:00:05.9]}
56... Kd4 {[%clk 0:00:25.1]} 57. Rh4+ {[%clk 0:00:06.3]} 57... Kd3 {[%clk
0:00:25.4]} 58. Rh3+ {[%clk 0:00:06.5]} 58... Kd4 {[%clk 0:00:25.5]} 59. Rf8
{[%clk 0:00:04.3]} 59... Kc5 {[%clk 0:00:24.6]} 60. Rh7 {[%clk 0:00:03.9]} 60...
Kd4 {[%clk 0:00:24.4]} 61. Rb7 {[%clk 0:00:04.1]} 61... Kc5 {[%clk 0:00:23.2]}
62. Rfb8 {[%clk 0:00:04.5]} 62... Rc2 {[%clk 0:00:22]} 63. Rxb5+ {[%clk
0:00:04.3]} 63... Kd4 {[%clk 0:00:21.7]} 64. Rxd5+ {[%clk 0:00:04.7]} 64... Kxd5
{[%clk 0:00:21.6]} 65. Kb3 {[%clk 0:00:05.3]} 65... Rc6 {[%clk 0:00:21.1]} 66.
Rb5+ {[%clk 0:00:04.9]} 66... Kd6 {[%clk 0:00:19.5]} 67. a4 {[%clk 0:00:05.4]}
67... Ra6 {[%clk 0:00:18.5]} 68. Ka3 {[%clk 0:00:05.1]} 68... Kc6 {[%clk
0:00:18.7]} 69. Rb8 {[%clk 0:00:05.4]} 69... Ra7 {[%clk 0:00:18.3]} 70. b4
{[%clk 0:00:05.6]} 70... Rg7 {[%clk 0:00:18.2]} 71. a5 {[%clk 0:00:05]} 71...
Rg1 {[%clk 0:00:16.7]} 72. Kb3 {[%clk 0:00:03.5]} 72... Rg3+ {[%clk 0:00:15.8]}
73. Kc4 {[%clk 0:00:03.8]} 73... Rg4+ {[%clk 0:00:15.7]} 74. Kb3 {[%clk
0:00:04.4]} 74... Rg3+ {[%clk 0:00:15.3]} 75. Ka4 {[%clk 0:00:04.8]} 75... Rg1
{[%clk 0:00:15.2]} 76. Rc8+ {[%clk 0:00:04.5]} 76... Kb7 {[%clk 0:00:15.2]} 77.
Rc5 {[%clk 0:00:05]} 77... Ka6 {[%clk 0:00:14.6]} 78. Rc6+ {[%clk 0:00:05.3]}
78... Ka7 {[%clk 0:00:15.5]} 79. Kb5 {[%clk 0:00:05.1]} 79... Rg5+ {[%clk
0:00:14.8]} 80. Rc5 {[%clk 0:00:05.6]} 80... Rg6 {[%clk 0:00:15]} 81. Rd5 {[%clk
0:00:06]} 81... Kb7 {[%clk 0:00:14.7]} 82. Rd7+ {[%clk 0:00:06.2]} 82... Kb8
{[%clk 0:00:14.8]} 83. a6 {[%clk 0:00:05.6]} 83... Rg5+ {[%clk 0:00:13.5]} 84.
Ka4 {[%clk 0:00:04.7]} 84... Rg1 {[%clk 0:00:11.7]} 85. b5 {[%clk 0:00:05]}
85... Ra1+ {[%clk 0:00:11]} 86. Kb4 {[%clk 0:00:05.5]} 86... Rc1 {[%clk
0:00:10.1]} 87. Ka5 {[%clk 0:00:05.3]} 87... Rh1 {[%clk 0:00:09.2]} 88. Rf7
{[%clk 0:00:03.5]} 88... Rh6 {[%clk 0:00:08.6]} 89. a7+ {[%clk 0:00:03]} 89...
Ka8 {[%clk 0:00:07.9]} 90. Re7 {[%clk 0:00:03.3]} 90... Ra6+ {[%clk 0:00:04.7]}
91. Kb4 {[%clk 0:00:03.2]} 91... Rxa7 {[%clk 0:00:02.3]} 92. Re8+ {[%clk
0:00:03.7]} 92... Kb7 {[%clk 0:00:02.3]} 93. Kc5 {[%clk 0:00:04.4]} 1-0